[Event "Live Chess"]
[Site "Chess.com"]
[Date "2024.06.02"]
[Round "-"]
[White "Hoogleboogle"]
[Black "gobbles19"]
[Result "0-1"]
[WhiteElo "1194"]
[BlackElo "2245"]
[TimeControl "300"]
[EndTime "8:53:59 PDT"]
[Termination "gobbles19 won by resignation"]

1. d4 {[%clk 0:04:53.9]} 1... Nf6 {[%clk 0:04:58.8]} 2. c4 {[%clk 0:04:52.8]}
2... e6 {[%clk 0:04:58.5]} 3. Bg5 {[%clk 0:04:50.3]} 3... c5 {[%clk 0:04:57.5]}
4. Nf3 {[%clk 0:04:47.1]} 4... cxd4 {[%clk 0:04:56]} 5. Nxd4 {[%clk 0:04:45.7]}
5... Be7 {[%clk 0:04:54.6]} 6. e3 {[%clk 0:04:41.3]} 6... Qa5+ {[%clk
0:04:53.2]} 7. Nc3 {[%clk 0:04:38.8]} 7... Qxg5 {[%clk 0:04:52.8]} 8. g3 {[%clk
0:04:27.6]} 8... O-O {[%clk 0:04:52]} 9. h4 {[%clk 0:04:08.9]} 9... Qa5 {[%clk
0:04:50.1]} 10. g4 {[%clk 0:04:03.1]} 10... Nc6 {[%clk 0:04:49.6]} 11. g5 {[%clk
0:04:02.1]} 11... Ne4 {[%clk 0:04:48.5]} 12. Ne2 {[%clk 0:03:53.7]} 12... Nxc3
{[%clk 0:04:46.1]} 13. Nxc3 {[%clk 0:03:50.9]} 13... f6 {[%clk 0:04:42.5]} 14.
Bd3 {[%clk 0:03:50.2]} 14... f5 {[%clk 0:04:41.1]} 15. e4 {[%clk 0:03:47.5]}
15... Ne5 {[%clk 0:04:40]} 16. Bc2 {[%clk 0:03:44.6]} 16... Nxc4 {[%clk
0:04:37.2]} 17. Qh5 {[%clk 0:03:39.3]} 17... g6 {[%clk 0:04:32.9]} 18. Qh6
{[%clk 0:03:33]} 18... Rf7 {[%clk 0:04:29.8]} 19. h5 {[%clk 0:03:32]} 19... Bf8
{[%clk 0:04:29.1]} 20. hxg6 {[%clk 0:03:27.6]} 20... Bxh6 {[%clk 0:04:28.3]} 21.
Rxh6 {[%clk 0:03:24.2]} 21... hxg6 {[%clk 0:04:26.3]} 22. O-O-O {[%clk
0:03:22.9]} 22... Rg7 {[%clk 0:04:17.5]} 23. Rdh1 {[%clk 0:03:22.8]} 23... Kf7
{[%clk 0:04:16]} 0-1

[Event "Live Chess"]
[Site "Chess.com"]
[Date "2024.06.02"]
[Round "-"]
[White "halfberg"]
[Black "MaximKovalenko83"]
[Result "0-1"]
[WhiteElo "1889"]
[BlackElo "2189"]
[TimeControl "300"]
[EndTime "8:54:10 PDT"]
[Termination "MaximKovalenko83 won by resignation"]

1. e4 {[%clk 0:04:55.6]} 1... e6 {[%clk 0:04:58.5]} 2. d4 {[%clk 0:04:52.4]}
2... d5 {[%clk 0:04:58.4]} 3. Nc3 {[%clk 0:04:50.9]} 3... dxe4 {[%clk
0:04:57.2]} 4. Nxe4 {[%clk 0:04:49.2]} 4... Nf6 {[%clk 0:04:57.1]} 5. Nxf6+
{[%clk 0:04:46.3]} 5... gxf6 {[%clk 0:04:57]} 6. Nf3 {[%clk 0:04:44.6]} 6... c5
{[%clk 0:04:56.1]} 7. c3 {[%clk 0:04:29]} 7... Nc6 {[%clk 0:04:53.2]} 8. Be3
{[%clk 0:04:25]} 8... cxd4 {[%clk 0:04:51.1]} 9. Nxd4 {[%clk 0:04:22.2]} 9... e5
{[%clk 0:04:46.9]} 10. Nxc6 {[%clk 0:04:19.2]} 10... bxc6 {[%clk 0:04:46.8]} 11.
Qxd8+ {[%clk 0:04:17.3]} 11... Kxd8 {[%clk 0:04:46.7]} 12. Bc4 {[%clk
0:04:13.1]} 12... Be6 {[%clk 0:04:44.7]} 13. Bxe6 {[%clk 0:04:06.5]} 13... fxe6
{[%clk 0:04:44.6]} 14. O-O-O+ {[%clk 0:04:05.1]} 14... Kc7 {[%clk 0:04:43.5]}
15. Rd2 {[%clk 0:03:57.3]} 15... Be7 {[%clk 0:04:36.3]} 16. Rhd1 {[%clk
0:03:55.7]} 16... Rhd8 {[%clk 0:04:34.4]} 17. Rxd8 {[%clk 0:03:54]} 17... Rxd8
{[%clk 0:04:34.3]} 18. Rxd8 {[%clk 0:03:52.4]} 18... Kxd8 {[%clk 0:04:30]} 19.
f3 {[%clk 0:03:50.7]} 19... Kc7 {[%clk 0:04:28]} 20. Kc2 {[%clk 0:03:49.7]}
20... a6 {[%clk 0:04:26.9]} 21. Kd3 {[%clk 0:03:47.7]} 21... f5 {[%clk
0:04:25.7]} 22. g4 {[%clk 0:03:44.3]} 22... Kd6 {[%clk 0:04:16.2]} 23. b4 {[%clk
0:03:40.6]} 23... Bh4 {[%clk 0:04:10.2]} 24. c4 {[%clk 0:03:09.6]} 24... Be1
{[%clk 0:04:04.9]} 25. Bc5+ {[%clk 0:03:05.6]} 25... Kd7 {[%clk 0:04:02.3]} 26.
a4 {[%clk 0:03:01.7]} 26... Kc7 {[%clk 0:03:54.4]} 27. Bf8 {[%clk 0:02:51.3]}
27... Kd7 {[%clk 0:03:50.4]} 28. Bg7 {[%clk 0:02:30.2]} 28... Bxb4 {[%clk
0:03:42.2]} 29. Bxe5 {[%clk 0:02:28.5]} 29... Bd6 {[%clk 0:03:40]} 30. Bxd6
{[%clk 0:01:57.1]} 30... Kxd6 {[%clk 0:03:39.9]} 31. Kd4 {[%clk 0:01:51.4]}
31... e5+ {[%clk 0:03:36.4]} 32. Kd3 {[%clk 0:01:48.3]} 32... Ke6 {[%clk
0:03:35.2]} 33. h4 {[%clk 0:01:30]} 33... Kf6 {[%clk 0:03:33.4]} 34. Ke3 {[%clk
0:01:25.3]} 34... a5 {[%clk 0:03:21.5]} 35. c5 {[%clk 0:01:06.6]} 35... h6
{[%clk 0:03:07.6]} 36. f4 {[%clk 0:00:59.8]} 36... fxg4 {[%clk 0:03:04.1]} 37.
fxe5+ {[%clk 0:00:54.3]} 37... Kxe5 {[%clk 0:03:04]} 38. h5 {[%clk 0:00:52]}
38... Kf5 {[%clk 0:03:03.1]} 0-1

[Event "Live Chess"]
[Site "Chess.com"]
[Date "2024.06.02"]
[Round "-"]
[White "Pablo_dmp"]
[Black "TheSmoulderingMaster"]
[Result "0-1"]
[WhiteElo "1975"]
[BlackElo "1783"]
[TimeControl "300"]
[EndTime "8:54:13 PDT"]
[Termination "TheSmoulderingMaster won by checkmate"]

1. e4 {[%clk 0:04:59.9]} 1... c5 {[%clk 0:04:58.3]} 2. a3 {[%clk 0:04:57.5]}
2... d6 {[%clk 0:04:56.9]} 3. Nf3 {[%clk 0:04:56.1]} 3... Nc6 {[%clk 0:04:55.6]}
4. d4 {[%clk 0:04:56]} 4... cxd4 {[%clk 0:04:54.2]} 5. Nxd4 {[%clk 0:04:55.9]}
5... Nf6 {[%clk 0:04:53.7]} 6. Nc3 {[%clk 0:04:54.1]} 6... g6 {[%clk 0:04:52.9]}
7. Be3 {[%clk 0:04:52]} 7... Bg7 {[%clk 0:04:51.5]} 8. Qd2 {[%clk 0:04:51]} 8...
O-O {[%clk 0:04:50.5]} 9. O-O-O {[%clk 0:04:50]} 9... Bd7 {[%clk 0:04:45.5]} 10.
h4 {[%clk 0:04:37.2]} 10... Rc8 {[%clk 0:04:41.6]} 11. f3 {[%clk 0:04:32.9]}
11... Ne5 {[%clk 0:04:39.4]} 12. h5 {[%clk 0:04:19.4]} 12... a6 {[%clk 0:04:35]}
13. Bh6 {[%clk 0:04:15.2]} 13... b5 {[%clk 0:04:31.2]} 14. Nd5 {[%clk
0:04:09.7]} 14... Nxd5 {[%clk 0:04:29]} 15. exd5 {[%clk 0:04:09.6]} 15... Nc4
{[%clk 0:04:26.5]} 16. Qg5 {[%clk 0:04:05.8]} 16... Bf6 {[%clk 0:04:15.9]} 17.
Qg3 {[%clk 0:03:46.9]} 17... Qc7 {[%clk 0:04:11.2]} 18. hxg6 {[%clk 0:03:45.1]}
18... fxg6 {[%clk 0:04:09.3]} 19. Bxf8 {[%clk 0:03:42.5]} 19... Nxa3 {[%clk
0:04:02.7]} 20. c3 {[%clk 0:03:33.7]} 20... Bxd4 {[%clk 0:04:01.1]} 21. Rxd4
{[%clk 0:03:07.9]} 21... Nc4 {[%clk 0:03:58.1]} 22. Bxe7 {[%clk 0:03:02.6]}
22... Nxb2 {[%clk 0:03:55.1]} 23. f4 {[%clk 0:02:39.8]} 23... Na4 {[%clk
0:03:48.7]} 24. f5 {[%clk 0:02:35.4]} 24... Nxc3 {[%clk 0:03:46.1]} 25. Rxh7
{[%clk 0:02:29.5]} 25... Ne2+ {[%clk 0:03:43.6]} 26. Kd1 {[%clk 0:02:24.1]}
26... Nxg3 {[%clk 0:03:40.5]} 27. fxg6 {[%clk 0:02:22.8]} 27... Qc2+ {[%clk
0:03:36.7]} 28. Ke1 {[%clk 0:02:21.5]} 28... Qc3+ {[%clk 0:03:29.4]} 29. Rd2
{[%clk 0:02:17.6]} 29... Qe3+ {[%clk 0:03:24.6]} 30. Be2 {[%clk 0:02:13.1]}
30... Rc1+ {[%clk 0:03:22]} 31. Rd1 {[%clk 0:02:11.9]} 31... Qxe2# {[%clk
0:03:21.3]} 0-1

[Event "Live Chess"]
[Site "Chess.com"]
[Date "2024.06.02"]
[Round "-"]
[White "hapehansen"]
[Black "Dashman93"]
[Result "1-0"]
[WhiteElo "2255"]
[BlackElo "2131"]
[TimeControl "300"]
[EndTime "8:54:17 PDT"]
[Termination "hapehansen won by resignation"]

1. c4 {[%clk 0:04:56.3]} 1... e5 {[%clk 0:04:59]} 2. Nc3 {[%clk 0:04:53.6]} 2...
Bb4 {[%clk 0:04:57.7]} 3. Nd5 {[%clk 0:04:50.2]} 3... Bc5 {[%clk 0:04:56.2]} 4.
b4 {[%clk 0:04:38.9]} 4... Bf8 {[%clk 0:04:52.1]} 5. Bb2 {[%clk 0:04:27.7]} 5...
c6 {[%clk 0:04:50.4]} 6. Ne3 {[%clk 0:04:26]} 6... Bxb4 {[%clk 0:04:42.9]} 7.
Bxe5 {[%clk 0:04:22.5]} 7... Nf6 {[%clk 0:04:42.8]} 8. Qb3 {[%clk 0:04:16.6]}
8... Na6 {[%clk 0:04:40.5]} 9. Nf3 {[%clk 0:04:13.6]} 9... Qa5 {[%clk
0:04:36.7]} 10. Bxf6 {[%clk 0:04:04.6]} 10... gxf6 {[%clk 0:04:36.6]} 11. Qb2
{[%clk 0:03:59.4]} 11... d6 {[%clk 0:04:34.6]} 12. Qxf6 {[%clk 0:03:55.1]} 12...
Rf8 {[%clk 0:04:30.3]} 13. Rd1 {[%clk 0:03:37.5]} 13... Be6 {[%clk 0:04:29.4]}
14. Nd4 {[%clk 0:03:32.5]} 14... Qd8 {[%clk 0:04:23]} 15. Qg7 {[%clk 0:03:15.4]}
15... Qe7 {[%clk 0:04:12.6]} 16. Nef5 {[%clk 0:03:05.2]} 16... Bxf5 {[%clk
0:04:10.8]} 17. Nxf5 {[%clk 0:03:03.3]} 17... Qe6 {[%clk 0:04:07.2]} 18. Qg5
{[%clk 0:02:57.5]} 18... Kd7 {[%clk 0:03:58.3]} 19. Nd4 {[%clk 0:02:48.3]} 19...
Qe4 {[%clk 0:03:50.2]} 20. Qf5+ {[%clk 0:02:38.4]} 20... Qxf5 {[%clk 0:03:49]}
21. Nxf5 {[%clk 0:02:38.3]} 21... Rae8 {[%clk 0:03:48.3]} 22. Ne3 {[%clk
0:02:29.6]} 22... Nc5 {[%clk 0:03:46.3]} 23. g3 {[%clk 0:02:14.8]} 23... d5
{[%clk 0:03:37.5]} 24. cxd5 {[%clk 0:02:09.8]} 24... cxd5 {[%clk 0:03:35.8]} 25.
Bh3+ {[%clk 0:02:09.5]} 25... Kd8 {[%clk 0:03:33.7]} 26. O-O {[%clk 0:02:04.7]}
26... d4 {[%clk 0:03:32.1]} 27. Nc2 {[%clk 0:01:59.6]} 27... Ba5 {[%clk
0:03:29]} 28. Nxd4 {[%clk 0:01:48.5]} 1-0

[Event "Live Chess"]
[Site "Chess.com"]
[Date "2024.06.02"]
[Round "-"]
[White "DylanMeyer1"]
[Black "booktrunk"]
[Result "1-0"]
[WhiteElo "1701"]
[BlackElo "1480"]
[TimeControl "300"]
[EndTime "8:54:19 PDT"]
[Termination "DylanMeyer1 won by resignation"]

1. c4 {[%clk 0:04:57]} 1... b6 {[%clk 0:04:57.7]} 2. Nc3 {[%clk 0:04:55.1]} 2...
Bb7 {[%clk 0:04:55.9]} 3. Nf3 {[%clk 0:04:51.1]} 3... e6 {[%clk 0:04:55.8]} 4.
g3 {[%clk 0:04:50.3]} 4... Bc5 {[%clk 0:04:40.6]} 5. Bg2 {[%clk 0:04:33]} 5...
Nf6 {[%clk 0:04:40.5]} 6. O-O {[%clk 0:04:31.5]} 6... O-O {[%clk 0:04:27.5]} 7.
e3 {[%clk 0:04:18.1]} 7... Nc6 {[%clk 0:04:17.1]} 8. d4 {[%clk 0:04:09.9]} 8...
Be7 {[%clk 0:04:12.7]} 9. b3 {[%clk 0:03:53.3]} 9... a5 {[%clk 0:03:47.8]} 10.
Bb2 {[%clk 0:03:43.7]} 10... Nb4 {[%clk 0:03:46.5]} 11. a3 {[%clk 0:03:41.6]}
11... Nc6 {[%clk 0:03:44.6]} 12. Qc2 {[%clk 0:03:33.3]} 12... d5 {[%clk
0:03:37.5]} 13. cxd5 {[%clk 0:03:25.4]} 13... Nxd5 {[%clk 0:03:35]} 14. Nxd5
{[%clk 0:03:22.5]} 14... exd5 {[%clk 0:03:34.9]} 15. Rac1 {[%clk 0:03:18.8]}
15... Bf6 {[%clk 0:03:27.1]} 16. Ne5 {[%clk 0:03:06.8]} 16... Bxe5 {[%clk
0:03:09]} 17. dxe5 {[%clk 0:03:06.7]} 17... Rc8 {[%clk 0:03:05.2]} 18. Rfd1
{[%clk 0:03:02.1]} 18... Ne7 {[%clk 0:03:01.7]} 19. e4 {[%clk 0:02:52.1]} 19...
dxe4 {[%clk 0:02:59.4]} 20. Rxd8 {[%clk 0:02:50.1]} 20... g6 {[%clk 0:02:59.3]}
21. Rxf8+ {[%clk 0:02:47.3]} 1-0

[Event "Live Chess"]
[Site "Chess.com"]
[Date "2024.06.02"]
[Round "-"]
[White "FREDERICKtheMATE"]
[Black "FlyingChessKestrel13"]
[Result "1-0"]
[WhiteElo "2663"]
[BlackElo "2063"]
[TimeControl "300"]
[EndTime "8:54:27 PDT"]
[Termination "FREDERICKtheMATE won by resignation"]

1. d4 {[%clk 0:04:57.7]} 1... d5 {[%clk 0:04:50.8]} 2. c4 {[%clk 0:04:56.5]}
2... dxc4 {[%clk 0:04:48.2]} 3. e3 {[%clk 0:04:55.1]} 3... Nf6 {[%clk
0:04:46.4]} 4. Bxc4 {[%clk 0:04:54.5]} 4... e6 {[%clk 0:04:45.9]} 5. Nf3 {[%clk
0:04:53.7]} 5... a6 {[%clk 0:04:44.2]} 6. a3 {[%clk 0:04:48.5]} 6... b5 {[%clk
0:04:42.8]} 7. Ba2 {[%clk 0:04:47.2]} 7... Bb7 {[%clk 0:04:42.1]} 8. O-O {[%clk
0:04:46.1]} 8... Nbd7 {[%clk 0:04:41.1]} 9. Nc3 {[%clk 0:04:44.8]} 9... Bd6
{[%clk 0:04:40.2]} 10. b4 {[%clk 0:04:41.4]} 10... O-O {[%clk 0:04:39]} 11. Bb2
{[%clk 0:04:39.4]} 11... e5 {[%clk 0:04:37.4]} 12. h3 {[%clk 0:04:23.4]} 12...
exd4 {[%clk 0:04:34.1]} 13. Nxd4 {[%clk 0:04:22.1]} 13... Be5 {[%clk 0:04:23.7]}
14. f4 {[%clk 0:04:11.8]} 14... Bxd4 {[%clk 0:04:22.4]} 15. Qxd4 {[%clk
0:04:10.8]} 15... Nb6 {[%clk 0:04:20.7]} 16. Ne2 {[%clk 0:04:05.7]} 16... Qxd4
{[%clk 0:04:16.9]} 17. Bxd4 {[%clk 0:04:05.6]} 17... Ne4 {[%clk 0:04:12.9]} 18.
Rfc1 {[%clk 0:04:03]} 18... Rac8 {[%clk 0:04:10.7]} 19. Nc3 {[%clk 0:03:57.8]}
19... Nxc3 {[%clk 0:04:08.8]} 20. Rxc3 {[%clk 0:03:57.7]} 20... Nd5 {[%clk
0:04:01.1]} 21. Rc5 {[%clk 0:03:55.6]} 21... Rfd8 {[%clk 0:03:51.2]} 22. Rac1
{[%clk 0:03:44.9]} 22... c6 {[%clk 0:03:34.4]} 23. g3 {[%clk 0:03:41.5]} 23...
Re8 {[%clk 0:03:28.7]} 24. Kf2 {[%clk 0:03:37.9]} 24... Rcd8 {[%clk 0:03:22.8]}
25. R5c2 {[%clk 0:03:28.8]} 25... h6 {[%clk 0:03:13.1]} 26. Be5 {[%clk 0:03:22]}
26... Re6 {[%clk 0:03:01.3]} 27. e4 {[%clk 0:03:17.6]} 27... Nf6 {[%clk
0:02:57]} 28. Bxe6 {[%clk 0:03:15.7]} 28... fxe6 {[%clk 0:02:50.4]} 29. Bxf6
{[%clk 0:03:12.8]} 29... gxf6 {[%clk 0:02:49.4]} 30. Ke3 {[%clk 0:03:11.9]}
30... Kf7 {[%clk 0:02:48.4]} 31. Rd2 {[%clk 0:03:10.9]} 31... Rxd2 {[%clk
0:02:46.9]} 32. Kxd2 {[%clk 0:03:10.8]} 32... Ke7 {[%clk 0:02:46.1]} 33. Rc5
{[%clk 0:03:09.4]} 33... Kd6 {[%clk 0:02:44]} 34. e5+ {[%clk 0:03:08.8]} 34...
fxe5 {[%clk 0:02:43.1]} 35. fxe5+ {[%clk 0:03:08.7]} 35... Ke7 {[%clk
0:02:42.5]} 36. Ke3 {[%clk 0:03:06.8]} 36... Kd7 {[%clk 0:02:41.8]} 37. Kf4
{[%clk 0:03:06]} 37... a5 {[%clk 0:02:41]} 38. bxa5 {[%clk 0:03:04.3]} 38... Ba6
{[%clk 0:02:39.8]} 39. Kg4 {[%clk 0:03:03.8]} 1-0

[Event "Live Chess"]
[Site "Chess.com"]
[Date "2024.06.02"]
[Round "-"]
[White "juniortay"]
[Black "Ninifu"]
[Result "1-0"]
[WhiteElo "2251"]
[BlackElo "1988"]
[TimeControl "300"]
[EndTime "8:54:30 PDT"]
[Termination "juniortay won by resignation"]

1. e4 {[%clk 0:04:57.6]} 1... d5 {[%clk 0:04:58.9]} 2. exd5 {[%clk 0:04:54.6]}
2... Nf6 {[%clk 0:04:58.3]} 3. c4 {[%clk 0:04:53.3]} 3... e6 {[%clk 0:04:57.1]}
4. d4 {[%clk 0:04:52.8]} 4... exd5 {[%clk 0:04:55.8]} 5. Nc3 {[%clk 0:04:52.4]}
5... Nc6 {[%clk 0:04:55.2]} 6. Nf3 {[%clk 0:04:51.7]} 6... Be7 {[%clk
0:04:53.6]} 7. cxd5 {[%clk 0:04:50.2]} 7... Nxd5 {[%clk 0:04:52.1]} 8. Bc4
{[%clk 0:04:49.6]} 8... Be6 {[%clk 0:04:51.1]} 9. Bb3 {[%clk 0:04:47.9]} 9...
O-O {[%clk 0:04:41.1]} 10. O-O {[%clk 0:04:40.6]} 10... Bf6 {[%clk 0:04:39.7]}
11. Re1 {[%clk 0:04:38.7]} 11... Na5 {[%clk 0:04:25.8]} 12. Bc2 {[%clk 0:04:36]}
12... Nc4 {[%clk 0:04:13.9]} 13. Qd3 {[%clk 0:04:29.7]} 13... g6 {[%clk
0:04:03.5]} 14. Qxc4 {[%clk 0:04:28.2]} 14... Nf4 {[%clk 0:02:52.8]} 15. Qf1
{[%clk 0:04:19]} 15... Qd6 {[%clk 0:02:30.8]} 16. Nb5 {[%clk 0:04:08.1]} 16...
Qc6 {[%clk 0:02:10.1]} 17. Be4 {[%clk 0:04:06.3]} 17... Bd5 {[%clk 0:02:04.4]}
18. Bxd5 {[%clk 0:04:01.4]} 18... Nxd5 {[%clk 0:02:02.6]} 19. Bh6 {[%clk
0:03:58.3]} 19... Rfd8 {[%clk 0:01:44.6]} 20. Ne5 {[%clk 0:03:50.8]} 20... Qc2
{[%clk 0:01:25.2]} 21. Rac1 {[%clk 0:03:43.2]} 21... Qf5 {[%clk 0:01:17.5]} 22.
Nxc7 {[%clk 0:03:37.8]} 22... Rac8 {[%clk 0:01:03.8]} 23. Nxd5 {[%clk 0:03:31]}
23... Rxc1 {[%clk 0:01:02.6]} 24. Nxf6+ {[%clk 0:03:27.6]} 24... Qxf6 {[%clk
0:00:57.5]} 25. Rxc1 {[%clk 0:03:24.1]} 1-0

[Event "Live Chess"]
[Site "Chess.com"]
[Date "2024.06.02"]
[Round "-"]
[White "nigelst"]
[Black "GerardATHart"]
[Result "1/2-1/2"]
[WhiteElo "1720"]
[BlackElo "1417"]
[TimeControl "300"]
[EndTime "8:54:31 PDT"]
[Termination "Game drawn by repetition"]

1. e4 {[%clk 0:04:55.1]} 1... e5 {[%clk 0:04:58.4]} 2. Nf3 {[%clk 0:04:53.5]}
2... Nc6 {[%clk 0:04:57.4]} 3. Bb5 {[%clk 0:04:51.7]} 3... a6 {[%clk 0:04:56.1]}
4. Bxc6 {[%clk 0:04:50.3]} 4... dxc6 {[%clk 0:04:54.8]} 5. O-O {[%clk
0:04:48.6]} 5... f6 {[%clk 0:04:53.1]} 6. d4 {[%clk 0:04:46.4]} 6... exd4 {[%clk
0:04:51.1]} 7. Nxd4 {[%clk 0:04:45.1]} 7... c5 {[%clk 0:04:49.6]} 8. Ne2 {[%clk
0:04:21.2]} 8... Qxd1 {[%clk 0:04:47.6]} 9. Rxd1 {[%clk 0:04:19.6]} 9... Bd7
{[%clk 0:04:46.4]} 10. Nd2 {[%clk 0:04:15.3]} 10... O-O-O {[%clk 0:04:44.6]} 11.
Nc4 {[%clk 0:04:12.4]} 11... b5 {[%clk 0:04:35]} 12. Na5 {[%clk 0:04:07.7]}
12... Bd6 {[%clk 0:04:25.7]} 13. f4 {[%clk 0:04:00]} 13... Ne7 {[%clk
0:04:22.2]} 14. Be3 {[%clk 0:03:49.4]} 14... Nc6 {[%clk 0:04:16.3]} 15. Nxc6
{[%clk 0:03:47.3]} 15... Bxc6 {[%clk 0:04:14.6]} 16. Ng3 {[%clk 0:03:28.9]}
16... Rhe8 {[%clk 0:04:03.2]} 17. Nf5 {[%clk 0:03:19.3]} 17... Bxe4 {[%clk
0:03:54.1]} 18. Nxd6+ {[%clk 0:03:14.1]} 18... cxd6 {[%clk 0:03:50.9]} 19. Rd2
{[%clk 0:03:06]} 19... Bxc2 {[%clk 0:03:42.3]} 20. Kf2 {[%clk 0:03:02]} 20...
Bg6 {[%clk 0:03:37.6]} 21. Rad1 {[%clk 0:02:59.3]} 21... Re6 {[%clk 0:03:34.5]}
22. Bxc5 {[%clk 0:02:51.8]} 22... Kc7 {[%clk 0:03:26]} 23. Bb4 {[%clk
0:02:40.2]} 23... Kc6 {[%clk 0:03:15.3]} 24. Rc1+ {[%clk 0:02:33.2]} 24... Kb6
{[%clk 0:03:09.5]} 25. Rcd1 {[%clk 0:02:29]} 25... Kc6 {[%clk 0:02:21.8]} 26.
Rc1+ {[%clk 0:02:20.1]} 26... Kb6 {[%clk 0:02:16.1]} 27. Rcd1 {[%clk 0:02:16]}
27... Kc6 {[%clk 0:01:56.4]} 1/2-1/2

[Event "Live Chess"]
[Site "Chess.com"]
[Date "2024.06.02"]
[Round "-"]
[White "Cruiseylee78"]
[Black "grillage"]
[Result "0-1"]
[WhiteElo "1667"]
[BlackElo "1881"]
[TimeControl "300"]
[EndTime "8:54:31 PDT"]
[Termination "grillage won by resignation"]

1. d4 {[%clk 0:04:58.1]} 1... e6 {[%clk 0:04:53.8]} 2. Bf4 {[%clk 0:04:52.2]}
2... Nf6 {[%clk 0:04:51.9]} 3. e3 {[%clk 0:04:51.4]} 3... c5 {[%clk 0:04:50.5]}
4. Bd3 {[%clk 0:04:48.9]} 4... cxd4 {[%clk 0:04:49.5]} 5. exd4 {[%clk
0:04:48.8]} 5... Be7 {[%clk 0:04:48.4]} 6. c3 {[%clk 0:04:48.4]} 6... b6 {[%clk
0:04:47.8]} 7. Nd2 {[%clk 0:04:47.2]} 7... Ba6 {[%clk 0:04:46.8]} 8. Ngf3 {[%clk
0:04:46.8]} 8... Bxd3 {[%clk 0:04:45.7]} 9. Qb3 {[%clk 0:04:42.7]} 9... Ba6
{[%clk 0:04:39.5]} 10. Ne5 {[%clk 0:04:40.8]} 10... O-O {[%clk 0:04:34.3]} 0-1

[Event "Live Chess"]
[Site "Chess.com"]
[Date "2024.06.02"]
[Round "-"]
[White "matt1979"]
[Black "Pandreq"]
[Result "1-0"]
[WhiteElo "1424"]
[BlackElo "1223"]
[TimeControl "300"]
[EndTime "8:54:39 PDT"]
[Termination "matt1979 won by resignation"]

1. e4 {[%clk 0:04:57.1]} 1... Nf6 {[%clk 0:04:58.7]} 2. e5 {[%clk 0:04:54.6]}
2... Nd5 {[%clk 0:04:57.8]} 3. c4 {[%clk 0:04:53.6]} 3... Nb6 {[%clk 0:04:56.3]}
4. d4 {[%clk 0:04:52.8]} 4... d6 {[%clk 0:04:55.3]} 5. exd6 {[%clk 0:04:50.4]}
5... exd6 {[%clk 0:04:54]} 6. Nf3 {[%clk 0:04:47.8]} 6... Be7 {[%clk 0:04:52.4]}
7. Nc3 {[%clk 0:04:43.6]} 7... Be6 {[%clk 0:04:49.2]} 8. b3 {[%clk 0:04:38.8]}
8... Bf6 {[%clk 0:04:41.7]} 9. Be3 {[%clk 0:04:32.6]} 9... c5 {[%clk 0:04:30.7]}
10. Rc1 {[%clk 0:04:24.5]} 10... cxd4 {[%clk 0:04:27.2]} 11. Bxd4 {[%clk
0:04:23.3]} 11... Nc6 {[%clk 0:04:20.1]} 12. Be3 {[%clk 0:04:11.6]} 12... O-O
{[%clk 0:04:05.1]} 13. Bd3 {[%clk 0:04:08]} 13... Ne5 {[%clk 0:04:01]} 14. Nxe5
{[%clk 0:04:06.4]} 14... Bxe5 {[%clk 0:03:59.5]} 15. O-O {[%clk 0:04:01.8]}
15... Qf6 {[%clk 0:03:55.8]} 16. Qc2 {[%clk 0:03:59]} 16... h6 {[%clk
0:03:48.7]} 17. f4 {[%clk 0:03:53.2]} 17... Bd4 {[%clk 0:03:42.5]} 18. Bxd4
{[%clk 0:03:46.6]} 18... Qxd4+ {[%clk 0:03:40.4]} 19. Kh1 {[%clk 0:03:45.8]}
19... Rac8 {[%clk 0:03:33.6]} 20. Rcd1 {[%clk 0:03:44.6]} 20... Qf6 {[%clk
0:03:24.4]} 21. Ne4 {[%clk 0:03:32.7]} 21... Qe7 {[%clk 0:03:17]} 22. f5 {[%clk
0:03:04.3]} 22... Bd7 {[%clk 0:02:52.3]} 23. f6 {[%clk 0:03:00.9]} 23... Qe5
{[%clk 0:02:41.5]} 24. fxg7 {[%clk 0:02:55.6]} 24... Nd5 {[%clk 0:02:38.2]} 25.
Qd2 {[%clk 0:02:41.1]} 25... Qxg7 {[%clk 0:02:26]} 26. cxd5 {[%clk 0:02:37.8]}
26... Bg4 {[%clk 0:02:10.2]} 27. Nf6+ {[%clk 0:02:33.7]} 27... Kh8 {[%clk
0:02:06.5]} 28. Nxg4 {[%clk 0:02:30.6]} 1-0

[Event "Live Chess"]
[Site "Chess.com"]
[Date "2024.06.02"]
[Round "-"]
[White "TigerTank70"]
[Black "Lexram8"]
[Result "1-0"]
[WhiteElo "2189"]
[BlackElo "1570"]
[TimeControl "300"]
[EndTime "8:54:41 PDT"]
[Termination "TigerTank70 won by resignation"]

1. e4 {[%clk 0:04:56.8]} 1... c5 {[%clk 0:04:59.1]} 2. d4 {[%clk 0:04:55.5]}
2... cxd4 {[%clk 0:04:59]} 3. c3 {[%clk 0:04:54.2]} 3... dxc3 {[%clk 0:04:58.2]}
4. Nxc3 {[%clk 0:04:52.9]} 4... Nc6 {[%clk 0:04:57.4]} 5. Nf3 {[%clk 0:04:51.9]}
5... d6 {[%clk 0:04:56.7]} 6. Bc4 {[%clk 0:04:50.9]} 6... Nf6 {[%clk 0:04:56]}
7. Qe2 {[%clk 0:04:47.4]} 7... Qc7 {[%clk 0:04:54.1]} 8. O-O {[%clk 0:04:43.6]}
8... a6 {[%clk 0:04:53.3]} 9. Rd1 {[%clk 0:04:40.5]} 9... g6 {[%clk 0:04:51.3]}
10. Bf4 {[%clk 0:04:30.5]} 10... e5 {[%clk 0:04:49.8]} 11. Bg5 {[%clk 0:04:25]}
11... Bg7 {[%clk 0:04:47.8]} 12. Bxf6 {[%clk 0:04:24.3]} 12... Bxf6 {[%clk
0:04:46.9]} 13. Nd5 {[%clk 0:04:24.2]} 13... Qd8 {[%clk 0:04:44.9]} 14. Nxf6+
{[%clk 0:04:24]} 14... Qxf6 {[%clk 0:04:44.2]} 15. Qd3 {[%clk 0:04:18.1]} 15...
Be6 {[%clk 0:04:40.4]} 16. Qxd6 {[%clk 0:03:43.9]} 16... Rd8 {[%clk 0:04:34.9]}
17. Qc5 {[%clk 0:03:41.9]} 17... Bxc4 {[%clk 0:04:29.9]} 18. Rxd8+ {[%clk
0:03:39.7]} 18... Nxd8 {[%clk 0:04:22.4]} 19. Qxc4 {[%clk 0:03:30.5]} 19... O-O
{[%clk 0:04:21.3]} 20. Qc7 {[%clk 0:03:28.7]} 20... Nc6 {[%clk 0:04:20]} 21.
Qxb7 {[%clk 0:03:26.4]} 21... Nb4 {[%clk 0:04:18.5]} 22. Qxb4 {[%clk 0:03:23.1]}
1-0